fUST/lending_fUST_20240326
["ID","MTS","AMOUNT","RATE_DAILY","PERIOD"]
[320468177,1711385438232,-24900.0,0.00025247,2]
[320468178,1711385438242,-166.666666,0.00025335,2]
[320468179,1711385438252,-168.48056241,0.00025612,2]
[320468180,1711385438262,-159.823354,0.00025725,2]
[320468181,1711385438275,-166.666666,0.0002599,2]
[320468182,1711385438286,-155.11944197,0.00026,2]
[320468183,1711385438295,-166.666666,0.00026645,2]
[320468184,1711385438304,-2882.33932779,0.000269,2]
[320468185,1711385438314,-2125.24384731,0.000269,2]
[320468186,1711385438323,-659.82180398,0.000269,2]
[320468187,1711385438333,-688.44756833,0.0002699,2]
[320468188,1711385438343,-213.10855114,0.00026998,2]
[320468189,1711385438353,-422.31880829,0.00026999,2]
[320468190,1711385438362,-290.77468652,0.00026999,2]
[320468191,1711385438372,-500.0,0.00026999,2]
[320468192,1711385438382,-500.0,0.00026999,2]
[320468193,1711385438391,-500.0,0.00026999,2]
[320468194,1711385438400,-645.82621554,0.00026999,2]
[320468195,1711385438410,-27779.9944907,0.00027,2]
[320468196,1711385438422,-9130.20749851,0.00027,2]
[320468197,1711385438433,-4326.93051149,0.00027,2]
[320468202,1711385439996,-8064.13012921,0.00027,2]
[320468203,1711385440012,-41888.39291186,0.00027,2]
[320468290,1711385441304,-155.11944197,0.00024023,2]
[320468292,1711385441317,-202636.75855749,0.00027,2]
[320468338,1711385443215,-338.88,0.00027,2]
[320468339,1711385443281,-1137912.25446007,0.00027,2]
[320468341,1711385443295,-166211.16789403,0.00027,2]
[320468361,1711385443599,-93833.26812202,0.00027,2]
[320468362,1711385443613,-51429.77029566,0.00027,2]
[320468386,1711385444059,2091.37934954,0.0002699,30]
[320468420,1711385446455,-360247.92622368,0.00027,2]
[320468765,1711385456676,208.0990373,0.00026999,30]
[320468771,1711385635165,12236.66420017,0.0002,2]
[320468773,1711385658439,750.04789537,0.00021,5]
[320468774,1711385695687,500.0,0.00021,2]
[320468775,1711385715688,500.0,0.00021,2]
[320468776,1711385731694,500.0,0.00021,2]
[320468778,1711385753689,500.0,0.00021,2]
[320468779,1711385771695,500.0,0.00021,2]
[320468780,1711385789833,500.0,0.00021,2]
[320468781,1711385807694,500.0,0.00021,2]
[320468782,1711385823702,500.0,0.00021,2]
[320468783,1711385841819,500.0,0.00021,2]
[320468784,1711385861709,500.0,0.00021,2]
[320468786,1711385881711,500.0,0.00021,2]
[320468787,1711385901707,500.0,0.00021,2]
[320468790,1711385921712,500.0,0.00021,2]
[320468793,1711385943722,500.0,0.00021,2]
[320468794,1711385961713,500.0,0.00021,2]
[320468795,1711385981738,500.0,0.00021,2]
[320468796,1711386080646,20925.55535156,0.00021,2]
[320468797,1711386080683,12771.2577119,0.00021,2]
[320468798,1711386085364,24900.0,0.00020887,2]
[320468803,1711386207490,614.574209,0.00020809,2]
[320468807,1711386310177,34234.64934476,0.00021,2]
[320468827,1711386557083,321.94574607,0.000189,2]
[320468828,1711386560882,24900.0,0.00020793,2]
[320468830,1711386564722,797.76,0.00021,2]
[320468888,1711386632215,-608.98515856,0.0002174,2]
[320468890,1711386632225,-155.15981461,0.0002174,2]
[320468891,1711386632235,-302.59359524,0.0002174,2]
[320468892,1711386632246,-560.02439842,0.00021741,2]
[320468898,1711386632378,-291.35313108,0.00021741,2]
[320468900,1711386632387,-155.15670828,0.00021742,2]
[320468902,1711386632397,-155.15826143,0.00021743,2]
[320468903,1711386632406,-155.15826143,0.00021743,2]
[320468904,1711386632416,-1478.45909339,0.00021744,2]
[320468905,1711386632426,-180.22166268,0.00021744,2]
[320468906,1711386632435,-305.09083774,0.00021745,2]
[320468907,1711386632445,-1922.02642136,0.00021745,2]
[320468908,1711386632454,-170.58466675,0.00021746,2]
[320468909,1711386632463,-205.27707627,0.00021746,2]
[320468910,1711386632473,-155.15981461,0.00021746,2]
[320468911,1711386632482,-1956.79393674,0.00021746,2]
[320468912,1711386632491,-322.828959,0.00021747,2]
[320468913,1711386632501,-288.47550235,0.00021748,2]
[320468914,1711386632510,-300.0,0.00021751,2]
[320468915,1711386632519,-912.14696961,0.00021804,2]
[320468916,1711386632529,-1000.25287511,0.00021903,2]
[320468917,1711386632538,-44537.94730115,0.00021905,2]
[320468918,1711386632547,-166.666666,0.00021918,2]
[320468919,1711386632557,-251.859224,0.00022,2]
[320468920,1711386632566,-877.46470654,0.00023899,2]
[320468921,1711386632578,-321.94574607,0.000239,2]
[320468922,1711386632587,-302.0,0.00023926,2]
[320468923,1711386632599,-166.666666,0.00024482,2]
[320468924,1711386632608,-155.11944197,0.00025119,2]
[320468925,1711386632617,-3464.29858752,0.00025136,2]
[320468926,1711386632627,-159.91087859,0.00025742,2]
[320468927,1711386632639,-2099.91605,0.00025743,2]
[320468928,1711386632649,-309.86984272,0.00026459,2]
[320468929,1711386632658,-1383.49000396,0.0002673,2]
[320468930,1711386632667,-2862.70385805,0.000269,2]
[320468931,1711386632677,-192.09614906,0.00026998,2]
[320468932,1711386632687,-270.55201027,0.00026998,2]
[320468933,1711386632696,-1970.12271033,0.00026998,2]
[320468934,1711386632705,-157.54442201,0.00026998,2]
[320468935,1711386632717,-211.05575789,0.00026998,2]
[320468936,1711386632728,-253.0501821,0.00026998,2]
[320468937,1711386632737,-157.66762853,0.00026998,2]
[320468938,1711386632746,-863.54495364,0.00026998,2]
[320468939,1711386632755,-685.3267314,0.00026998,2]
[320468940,1711386632766,-198.46148066,0.00026998,2]
[320468941,1711386632775,-263.56948973,0.00026998,2]
[320468942,1711386632785,-2411.90513681,0.00026998,2]
[320468943,1711386632794,-230.70766073,0.00026998,2]
[320468944,1711386632805,-310.20016879,0.00026998,2]
[320468945,1711386632814,-288.61653571,0.00026999,2]
[320468946,1711386632826,-158.52852927,0.00026999,2]
[320468947,1711386632837,-167.36856254,0.00026999,2]
[320468948,1711386632847,-1508.17993929,0.00026999,2]
[320468949,1711386632856,-2682.54120519,0.00026999,2]
[320468950,1711386632865,-290.71069332,0.00026999,2]
[320468951,1711386632874,-166.10573421,0.00026999,2]
[320468952,1711386632884,-156.49281143,0.00026999,2]
[320468953,1711386632894,-400.0,0.00026999,2]
[320468954,1711386632904,-155.8425402,0.00026999,2]
[320468955,1711386632914,-160.0,0.00026999,2]
[320468956,1711386632924,-160.0,0.00026999,2]
[320468957,1711386632933,-225.03178758,0.00026999,2]
[320468958,1711386632943,-500.0,0.00026999,2]
[320468959,1711386632952,-36891.60351761,0.00027,2]
[320468960,1711386632965,-10546.71565788,0.00027,2]
[320468961,1711386632977,-3282.73971354,0.00027,2]
[320469073,1711386638298,-337.59,0.00027,2]
[320469078,1711386638360,-27214.05913452,0.00027,2]
[320469081,1711386638381,-3299.005021,0.00027,2]
[320469222,1711386643484,-558.0588814,0.00026999,2]
[320469224,1711386643494,-223643.71795689,0.00027,2]
[320469227,1711386643506,-24821.58328951,0.00027,2]
[320469233,1711386643554,-4198.51342812,0.00027,2]
[320469235,1711386643566,-2955.61972066,0.00027,2]
[320469237,1711386643578,-56834.12533035,0.00027,2]
[320469483,1711386647301,-291.35313108,0.00026998,2]
[320469485,1711386647312,-602.79415888,0.00026999,2]
[320469487,1711386647321,-158.44645691,0.00026999,2]
[320469489,1711386647331,-379.65367836,0.00026999,2]
[320469491,1711386647342,-322.828959,0.00026999,2]
[320469493,1711386647351,-155.52802195,0.00026999,2]
[320469495,1711386647361,-267.68019405,0.00026999,2]
[320469497,1711386647370,-846.11348426,0.00026999,2]
[320469499,1711386647379,-882.94723111,0.00026999,2]
[320469501,1711386647389,-103387.86828937,0.00027,2]
[320469503,1711386647401,-522767.06828976,0.00027,2]
[320469863,1711386654516,5827.58609666,0.00021,2]
[320470617,1711386662354,-293.29431112,0.00026998,2]
[320470619,1711386662364,-155.15981461,0.00026998,2]
[320470621,1711386662374,-277.27657042,0.00026998,2]
[320470623,1711386662384,-779.94063236,0.00026998,2]
[320470625,1711386662393,-263.20205707,0.00026999,2]
[320470627,1711386662403,-205.27707627,0.00026999,2]
[320470629,1711386662412,-314.64657626,0.00026999,2]
[320470631,1711386662422,-1244.10961544,0.00026999,2]
[320470633,1711386662431,-1089.3926248,0.00026999,2]
[320470635,1711386662440,-305.09083774,0.00026999,2]
[320470637,1711386662452,-180.36529286,0.00026999,2]
[320470639,1711386662462,-60368.07881905,0.00027,2]
[320476829,1711387672907,-155.15360207,0.00024083,2]
[320476830,1711387672933,-166.666666,0.00024084,2]
[320476831,1711387672955,-167.71766,0.00024154,2]
[320476832,1711387672979,-241.146724,0.00024284,2]
[320476833,1711387673001,-2000.0,0.00024661,2]
[320476834,1711387673027,-340.04313234,0.000249,2]
[320476835,1711387673056,-2000.0,0.00025021,2]
[320476836,1711387673077,-2000.0,0.00025382,2]
[320476837,1711387673099,-159.823354,0.00025457,2]
[320476838,1711387673121,-155.36804576,0.0002547,2]
[320476839,1711387673143,-333.63661998,0.00025543,2]
[320476840,1711387673165,-326.46434441,0.00025554,2]
[320476841,1711387673187,-213.10855114,0.00025554,2]
[320476842,1711387673211,-310.19698074,0.00025554,2]
[320476843,1711387673235,-2749.7413467,0.00025554,2]
[320476844,1711387673257,-1573.60018062,0.00025554,2]
[320476845,1711387673279,-1478.45909339,0.00025554,2]
[320476846,1711387673301,-155.22747424,0.00025554,2]
[320476847,1711387673323,-242.91785712,0.00025554,2]
[320476848,1711387673346,-155.18441899,0.00025555,2]
[320476849,1711387673368,-3181.0535575,0.00025555,2]
[320476850,1711387673392,-645.82621554,0.00025555,2]
[320476851,1711387673418,-500.0,0.00025555,2]
[320476852,1711387673444,-500.0,0.00025555,2]
[320476853,1711387673469,-500.0,0.00025555,2]
[320476854,1711387673493,-64914.32020766,0.00025556,5]
[320476856,1711387714618,-166.666666,0.00025042,2]
[320476857,1711387714641,-3550.18610149,0.00025555,2]
[320476858,1711387714662,-3283.14723251,0.00025556,5]
[320476859,1711387730444,155.46366125,0.00019,2]
[320476888,1711387764206,155.16602765,0.00019,2]
[320476915,1711387765803,688.44756833,0.00019,2]
[320477102,1711387772162,19065.22561245,0.00019,2]
[320477103,1711387779978,313.20873988,0.00019,2]
[320477104,1711387780772,15987.48578878,0.00019,2]
[320477105,1711387781751,635.20301271,0.00019,2]
[320477106,1711387784199,155.16602765,0.00019,2]
[320477107,1711387786159,7844.6335613,0.00019,2]
[320477108,1711387786197,896.84069203,0.00019,2]
[320477109,1711387799893,313.20873988,0.00019,2]
[320477110,1711387800693,4088.89994477,0.00019,2]
[320477111,1711387800725,4887.35614147,0.00019,2]
[320477112,1711387802199,194.1767991,0.00019,2]
[320477113,1711387821907,313.58509565,0.00019,2]
[320477176,1711387832530,-1301.46396623,0.00023453,2]
[320477177,1711387832539,-535.34594372,0.00023453,2]
[320477178,1711387832548,-1888.81529834,0.00023454,2]
[320477179,1711387832557,-435.45196325,0.00023455,2]
[320477180,1711387832567,-226.69542156,0.00023456,2]
[320477181,1711387832575,-2000.0,0.00024877,2]
[320477182,1711387832584,-2000.0,0.00025454,2]
[320477183,1711387832593,-487.19598779,0.00025543,2]
[320477184,1711387832602,-4436.40857164,0.00025556,5]
[320477185,1711387832611,-28637.64964084,0.00025556,7]
[320477186,1711387832620,-920.79514438,0.00025648,2]
[320477187,1711387832629,-487.19598775,0.00025882,2]
[320477188,1711387832638,-166.666666,0.00025896,2]
[320477189,1711387832647,-7495.98876922,0.00026,2]
[320477190,1711387832657,-2000.0,0.00026031,2]
[320477191,1711387832666,-487.19598775,0.00026222,2]
[320477192,1711387832675,-487.19598775,0.00026561,2]
[320477193,1711387832685,-2000.0,0.00026608,2]
[320477194,1711387832695,-166.666666,0.00026749,2]
[320477195,1711387832704,-25806.0,0.000269,2]
[320477197,1711387832714,-333.63661997,0.000269,2]
[320477199,1711387832723,-2864.66740506,0.000269,2]
[320477200,1711387832733,-487.19598775,0.000269,2]
[320477203,1711387832743,-215.76714672,0.00026998,2]
[320477204,1711387832752,-284.58895705,0.00026998,2]
[320477206,1711387832762,-2086.66330066,0.00026998,2]
[320477208,1711387832771,-215.72261705,0.00026998,2]
[320477210,1711387832780,-155.21517622,0.00026998,2]
[320477212,1711387832790,-725.2447729,0.00026998,2]
[320477214,1711387832801,-1210.15117655,0.00026998,2]
[320477216,1711387832811,-1263.84733938,0.00026998,2]
[320477219,1711387832822,-685.88747989,0.00026998,2]
[320477220,1711387832831,-608.98515856,0.00026998,2]
[320477222,1711387832840,-780.33195473,0.00026998,2]
[320477224,1711387832849,-192.09614906,0.00026998,2]
[320477226,1711387832859,-816.54193756,0.00026998,2]
[320477228,1711387832868,-155.24144602,0.00026998,2]
[320477229,1711387832877,-322.07874155,0.00026999,2]
[320477230,1711387832886,-936.78669934,0.00026999,2]
[320477231,1711387832895,-422.31880829,0.00026999,2]
[320477233,1711387832904,-290.77468652,0.00026999,2]
[320477235,1711387832914,-44536.64250803,0.00027,2]
[320477237,1711387832930,-23620.21958917,0.00027,2]
[320477239,1711387832941,-5552.567237,0.00027,2]
[320477240,1711387832967,-402442.63853113,0.00027,2]
[320477307,1711387839062,-6422.88542,0.00027,2]
[320477577,1711387844138,-389.88671857,0.00026999,2]
[320477579,1711387844148,-4314.82128699,0.00027,2]
[320477580,1711387844169,-706.3036,0.00027,2]
[320477581,1711387844181,-38246.36789724,0.00027,2]
[320477610,1711387846796,-535.81137078,0.00026999,2]
[320477611,1711387846805,-196.55560722,0.00026999,2]
[320477787,1711389032625,-683.96804349,0.00021911,2]
[320477789,1711389032634,-155.15670828,0.00021912,2]
[320477791,1711389032644,-471.05027514,0.00021913,2]
[320477793,1711389032653,-155.15826143,0.00021913,2]
[320477794,1711389032662,-3509.19508101,0.00021914,2]
[320477795,1711389032672,-155.15826143,0.00021914,2]
[320477796,1711389032681,-170.58466675,0.00021914,2]
[320477797,1711389032691,-155.15826143,0.00021915,2]
[320477799,1711389032700,-780.33195473,0.00021915,2]
[320477801,1711389032709,-931.6812301,0.00021916,2]
[320477803,1711389032719,-155.15981461,0.00021917,2]
[320477806,1711389032728,-166.666666,0.00021918,2]
[320477809,1711389032737,-311.51378587,0.00022194,2]
[320477859,1711389038580,-2842.27595596,0.00022194,2]
[320477860,1711389038590,-24900.0,0.000222,2]
[320477861,1711389038599,-159.823354,0.00022303,2]
[320477862,1711389038608,-1772.555684,0.00023149,2]
[320477863,1711389038618,-166.666666,0.000232,2]
[320477864,1711389038628,-230.37144515,0.00023758,2]
[320477865,1711389038637,-189.38278239,0.00023998,2]
[320477866,1711389038646,-187.7475863,0.00023998,2]
[320477867,1711389038655,-309.70578029,0.00023998,2]
[320477868,1711389038664,-3481.86884503,0.00023998,2]
[320477869,1711389038673,-852.57413401,0.00023998,2]
[320477870,1711389038682,-210.87976388,0.00023998,2]
[320477871,1711389038692,-296.76469055,0.00023998,2]
[320477872,1711389038701,-166.24095408,0.00023998,2]
[320477873,1711389038710,-1533.97274494,0.00023998,2]
[320477874,1711389038720,-291.283474,0.00023998,2]
[320477875,1711389038729,-303.05457139,0.00023998,2]
[320477876,1711389038738,-523.28309686,0.00023998,2]
[320477877,1711389038747,-270.16270806,0.00023998,2]
[320477878,1711389038756,-405.00494432,0.00023998,2]
[320477880,1711389038765,-469.73988909,0.00023998,2]
[320477881,1711389038774,-205.27707627,0.00023998,2]
[320477882,1711389038784,-314.93472992,0.00023998,2]
[320477883,1711389038793,-528.40493097,0.00023998,2]
[320477884,1711389038802,-322.45069746,0.00023998,2]
[320477885,1711389038812,-156.24249828,0.00023998,2]
[320477886,1711389038821,-155.84298624,0.00023998,2]
[320477887,1711389038830,-5100.11872369,0.00023998,2]
[320477888,1711389038839,-267.54089763,0.00023998,2]
[320477889,1711389038849,-316.99666353,0.00023998,2]
[320477890,1711389038858,-160.75398886,0.00023998,2]
[320477891,1711389038868,-42.41424563,0.00023998,2]
[320477892,1711389038881,-200.77059203,0.00023998,2]
[320477893,1711389038891,-150.72425905,0.00023998,2]
[320477991,1711389041875,-90.90282554,0.00023998,2]
[320477992,1711389041885,-574.09717446,0.00023998,2]
[320477993,1711389041898,-2047.76159,0.00023998,2]
[320477994,1711389041907,-204.77269619,0.00023998,2]
[320477995,1711389041916,-190.87991699,0.00023999,2]
[320477996,1711389041925,-211.44418848,0.00023999,2]
[320477997,1711389041935,-213.40657122,0.00023999,2]
[320477998,1711389041945,-156.35136778,0.00023999,2]
[320477999,1711389041954,-286.62399524,0.00023999,2]
[320478000,1711389041964,-158.44777875,0.00023999,2]
[320478001,1711389041974,-50.26189535,0.00023999,2]
[320478002,1711389041991,-302.36725891,0.00023999,2]
[320478003,1711389042001,-240.48959419,0.00023999,2]
[320478004,1711389042010,-2230.98194546,0.00024,2]
[320478075,1711389043781,-375.312,0.00024,2]
[320478077,1711389043793,-16441.35988382,0.00024,2]
[320478079,1711389043804,-8164.99999395,0.00024,2]
[320478112,1711389044136,-722.09577735,0.00024,2]
[320478115,1711389044148,-5055.03830296,0.00024,2]
[320478117,1711389044160,-35434.36125189,0.00024,2]
[320478303,1711389047362,-214.81028963,0.00023998,2]
[320478304,1711389047372,-155.15670828,0.00023999,2]
[320478305,1711389047382,-211.29406515,0.00023999,2]
[320478306,1711389047391,-130933.59084457,0.00024,2]
[320478307,1711389047400,-166.666666,0.00024482,2]
[320478308,1711389047409,-228.70624225,0.000249,2]
[320478309,1711389047419,-310.0419807,0.00026,2]
[320478310,1711389047428,-2578.2006645,0.00026732,2]
[320478311,1711389047437,-1547460.36522738,0.00026832,60]
[320478312,1711389047455,-1168350.92782575,0.00026832,60]
[320478675,1711389058354,204.73048716,0.00025,9]
[320478683,1711389236023,20491.9126757,0.0002,2]
[320478692,1711389262244,3484.5208862,0.000125,2]
[320478693,1711389279687,187.66,0.0003,120]
[320478694,1711389377391,-180.0,0.00026783,60]
[320478695,1711389473896,-344055.0,0.00026783,60]
[320478696,1711389484464,5000.0,0.00025,9]
[320478697,1711389493391,5000.0,0.00025,9]
[320478698,1711389501693,5000.0,0.00025,9]
[320478699,1711389509540,5000.0,0.00025,9]
[320478700,1711389516251,1062.880895,0.00019807,2]
[320478701,1711389519144,3018.82006813,0.00025,9]
[320478702,1711389532882,-33866.0,0.00026784,60]
[320478703,1711389547547,2320.0,0.00019838,2]
[320478704,1711389552820,-155.15826143,0.00020589,2]
[320478705,1711389552842,-931.6812301,0.0002059,2]
[320478706,1711389552867,-214.73786596,0.0002059,2]
[320478707,1711389552889,-155.15826143,0.00020591,2]
[320478708,1711389552911,-155.15826143,0.00020591,2]
[320478709,1711389552934,-155.15826143,0.00020591,2]
[320478710,1711389552955,-560.02439842,0.00020592,2]
[320478711,1711389552977,-155.15826143,0.00020592,2]
[320478712,1711389552999,-155.15826143,0.00020592,2]
[320478713,1711389553020,-155.15826143,0.00020593,2]
[320478714,1711389553042,-471.05027514,0.00020593,2]
[320478715,1711389553064,-155.15826143,0.00020594,2]
[320478716,1711389553086,-155.15826143,0.00020594,2]
[320478717,1711389553108,-1301.46396623,0.00020594,2]
[320478718,1711389553131,-155.15826143,0.00020594,2]
[320478719,1711389553152,-275.7283,0.00020594,2]
[320478720,1711389553173,-155.15826143,0.00020595,2]
[320478721,1711389553193,-11845.9315693,0.00020599,2]
[320478722,1711389553216,-1036.564476,0.00020624,2]
[320478723,1711389553238,-300.0,0.0002088,2]
[320478724,1711389553260,-375.16780423,0.00020883,2]
[320478725,1711389553281,-194.119163,0.00020891,2]
[320478726,1711389553303,-200.0,0.00021165,2]
[320478727,1711389553324,-14452.79007589,0.00021793,2]
[320478728,1711389557100,163.803839,0.00023288,65]
[320478729,1711389557318,163.803839,0.00023288,74]
[320478730,1711389557529,163.803839,0.00023288,83]
[320478731,1711389557753,163.803839,0.00023288,92]
[320478732,1711389558275,163.803839,0.00023288,101]
[320478733,1711389558505,163.803839,0.00023288,110]
[320478734,1711389558729,163.803839,0.00023288,119]
[320479004,1711389777134,-780.33195473,0.00020084,2]
[320479005,1711389777262,-180.39336091,0.00020085,2]
[320479006,1711389777423,-19.60663909,0.00020085,2]
[320479007,1711389784925,-296.54172334,0.00020083,2]
[320479008,1711389785132,-6.0518719,0.00020083,2]
[320479009,1711389801834,-490.0,0.00020083,2]
[320479010,1711389801913,-10.0,0.00020083,2]
[320479011,1711389814932,-155.15981461,0.00020083,2]
[320479012,1711389814964,-404.13875245,0.00020083,2]
[320479013,1711389815046,-11.41425647,0.00020083,2]
[320479014,1711389817835,-490.0,0.00020083,2]
[320479015,1711389818036,-10.0,0.00020083,2]
[320479016,1711389819000,415.55300892,0.00020083,2]
[320479017,1711389837715,-161.24325328,0.00020083,2]
[320479018,1711389837746,-486.77513493,0.00020083,2]
[320479019,1711389837990,-13.22486507,0.00020083,2]
[320479020,1711389853471,-412.16472222,0.00020083,2]
[320479021,1711389853591,-8.41152494,0.00020083,2]
[320479022,1711389868029,155.15981461,0.00020269,2]
[320479023,1711389870587,155.15981461,0.00020269,2]
[320479024,1711389874115,155.15981461,0.00020269,2]
[320479025,1711389886178,1662.70397836,0.00020067,2]
[320479026,1711389886206,350.58541713,0.00020067,2]
[320479027,1711389893363,1622.43819045,0.00020269,2]
[320479028,1711389893394,1821.59225821,0.00020269,2]
[320479029,1711389893914,151.43134937,0.00020067,2]
[320479030,1711389893943,1861.85804612,0.00020067,2]
[320479031,1711389902767,111.16556146,0.00020067,2]
[320479032,1711389902797,1902.12383403,0.00020067,2]
[320479033,1711389904754,70.89977355,0.00020269,2]
[320479034,1711389904783,84.26004106,0.00020269,2]
[320479035,1711389906260,214.73786596,0.00020269,2]
[320479036,1711389906864,471.05027514,0.00020269,2]
[320479037,1711389911032,1202.97542542,0.00020067,2]
[320479038,1711389911063,810.31397007,0.00020067,2]
[320479039,1711389916083,864.38002108,0.00020269,2]
[320479040,1711389916349,155.15981461,0.00020269,2]
[320479041,1711389919061,143.16980182,0.00020067,2]
[320479042,1711389919183,1870.11959367,0.00020067,2]
[320479043,1711389920798,102.90401391,0.00020269,2]
[320479044,1711389920829,1198.55995232,0.00020269,2]
[320479045,1711389926945,1973.02360758,0.00020067,2]
[320479046,1711389926975,40.26578791,0.00020067,2]
[320479047,1711389935139,1973.02360758,0.00020067,2]
[320479048,1711389935170,40.26578791,0.00020067,2]
[320479049,1711389943529,1973.02360758,0.00020067,2]
[320479050,1711389943558,40.26578791,0.00020067,2]
[320479051,1711389952269,1973.02360758,0.00020067,2]
[320479052,1711389952314,40.26578791,0.00020067,2]
[320479053,1711389957102,155.15981461,0.00020269,2]
[320479054,1711389960250,1973.02360758,0.00020067,2]
[320479055,1711389960281,40.26578791,0.00020067,2]
[320479056,1711389968551,1973.02360758,0.00020067,2]
[320479057,1711389968580,40.26578791,0.00020067,2]
[320479058,1711389977478,1973.02360758,0.00020067,2]
[320479059,1711389977509,40.26578791,0.00020067,2]
[320479060,1711389979303,155.15981461,0.00020269,2]
[320479061,1711390011037,402.68280327,0.00019178,2]
[320479062,1711390025478,163.803839,0.00023288,61]
[320479063,1711390025709,163.803839,0.00023288,80]
[320479064,1711390025918,163.803839,0.00023288,100]
[320479065,1711390026129,163.803839,0.00023288,120]
[320479066,1711390035344,861.97,0.0002767,60]
[320479067,1711390040466,531.440447,0.00019833,2]
[320479218,1711390117828,24900.0,0.00019833,2]
[320479230,1711390165638,-155.15981461,0.00020062,2]
[320479231,1711390165664,-214.73786596,0.00020063,2]
[320479232,1711390165689,-2013.28939549,0.00020067,2]
[320479233,1711390165711,-2000.0,0.0002022,2]
[320479234,1711390165734,-2013.28939549,0.0002027,2]
[320479235,1711390165758,-155.15826143,0.00020588,2]
[320479236,1711390165781,-177.4068221,0.00020599,2]
[320479237,1711390165804,-1685.7260117,0.00020678,2]
[320479238,1711390165827,-300.0,0.00021057,2]
[320479239,1711390165849,-233.52782978,0.00021058,2]
[320479240,1711390165871,-2656.69024162,0.00021058,2]
[320479241,1711390165893,-228.80323428,0.00021155,2]
[320479242,1711390165915,-252.37261807,0.00021155,2]
[320479243,1711390165937,-500.0,0.00021156,2]
[320479244,1711390165959,-500.0,0.00021156,2]
[320479245,1711390165981,-264.99728906,0.00021156,2]
[320479246,1711390166003,-500.0,0.00021156,2]
[320479247,1711390166026,-620.71285071,0.00021156,2]
[320479248,1711390166049,-500.0,0.00021156,2]
[320479249,1711390166071,-493.54224124,0.00021156,2]
[320479250,1711390166093,-645.97087518,0.00021156,2]
[320479251,1711390166115,-373.4802319,0.00021156,2]
[320479252,1711390166153,-424050.13502138,0.00021157,2]
[320479257,1711390186974,19065.22561245,0.00019833,2]
[320479258,1711390187047,15987.48578878,0.00019833,2]
[320479343,1711390235518,15987.48578878,0.00019833,2]
[320479344,1711390235557,5172.41504345,0.00019635,2]
[320479368,1711390239578,19065.22561245,0.00019833,2]
[320479596,1711390243879,500.0,0.00019833,2]
[320479652,1711390244387,-205.27707627,0.00020055,2]
[320479654,1711390244396,-267.95932622,0.00020055,2]
[320479829,1711390246310,200.0,0.0002,2]
[320479901,1711390247009,-326.05635795,0.00020054,2]
[320479902,1711390247019,-155.15981461,0.00020054,2]
[320479904,1711390247029,-302.59359524,0.00020054,2]
[320479906,1711390247039,-160.87070723,0.00020054,2]
[320479908,1711390247048,-155.15981461,0.00020054,2]
[320479910,1711390247057,-275.7283,0.00020054,2]
[320479913,1711390247067,-1618.5968338,0.00020055,2]
[320480027,1711390251483,15933.78078231,0.00019833,2]
[320480041,1711390253403,12088.32284596,0.00019833,2]
[320480042,1711390253523,2317.30049968,0.00019635,2]
[320480043,1711390257637,681.423976,0.00019058,2]
[320480044,1711390258435,442.39441333,0.00019957,2]
[320480045,1711390263827,500.0,0.00019833,2]
[320480046,1711390283830,500.0,0.00019833,2]
[320480047,1711390291446,165.976935,0.00019178,2]
[320480048,1711390310392,500.0,0.00019833,2]
[320480049,1711390327828,500.0,0.00019833,2]
[320480050,1711390349833,500.0,0.00019833,2]
[320480051,1711390358195,-204.80548194,0.0002004,2]
[320480052,1711390358230,-211.33899684,0.0002004,2]
[320480053,1711390358264,-1922.02642136,0.0002004,2]
[320480054,1711390358301,-985.59619535,0.00020041,2]
[320480055,1711390358336,-322.828959,0.00020041,2]
[320480056,1711390358372,-180.22166268,0.00020041,2]
[320480057,1711390358409,-780.33195473,0.00020041,2]
[320480058,1711390358444,-187.30483325,0.00020042,2]
[320480059,1711390358482,-275.7283,0.00020042,2]